Workbook

Sheet VERA Pension Factors (hidden)
A1: 1995
A2: TABLE ERF1 | B2: Updated 29/01/2019 | P2: TABLE ERF1 | R2: Prior to factor change
A3: NHS SUPERANNUATION SCHEME SCOTLAND: ACTUARIAL FACTORS | P3: NHS SUPERANNUATION SCHEME SCOTLAND: ACTUARIAL FACTORS
A4: BENEFITS PAYABLE TO THE MEMBER ON VOLUNTARY EARLY RETIREMENT (WITH ACTUARIAL REDUCTION) | P4: BENEFITS PAYABLE TO THE MEMBER ON VOLUNTARY EARLY RETIREMENT (WITH ACTUARIAL REDUCTION)
A5: MEMBERS OF 1995 SECTION (RELATIVE TO PENSION AGE OF 60) | P5: MEMBERS OF 1995 SECTION (RELATIVE TO PENSION AGE OF 60)
A7: Age: complete months | B7: 0 | C7: 1 | D7: 2 | E7: 3 | F7: 4 | G7: 5 | H7: 6 | I7: 7 | J7: 8 | K7: 9 | L7: 10 | M7: 11 | P7: Age: complete months | Q7: 0 | R7: 1 | S7: 2 | T7: 3 | U7: 4 | V7: 5 | W7: 6 | X7: 7 | Y7: 8 | Z7: 9 | AA7: 10 | AB7: 11
A8: PENSION FACTORS | P8: PENSION FACTORS
A9: 50 | B9: 0.654 | C9: 0.656 | D9: 0.658 | E9: 0.66 | F9: 0.662 | G9: 0.664 | H9: 0.666 | I9: 0.668 | J9: 0.67 | K9: 0.672 | L9: 0.674 | M9: 0.677 | P9: 50 | Q9: 0.633 | R9: 0.635 | S9: 0.637 | T9: 0.64 | U9: 0.642 | V9: 0.644 | W9: 0.646 | X9: 0.648 | Y9: 0.65 | Z9: 0.653 | AA9: 0.655 | AB9: 0.657
A10: 51 | B10: 0.679 | C10: 0.681 | D10: 0.683 | E10: 0.685 | F10: 0.687 | G10: 0.689 | H10: 0.692 | I10: 0.694 | J10: 0.696 | K10: 0.698 | L10: 0.7 | M10: 0.702 | P10: 51 | Q10: 0.659 | R10: 0.661 | S10: 0.664 | T10: 0.666 | U10: 0.668 | V10: 0.671 | W10: 0.673 | X10: 0.675 | Y10: 0.678 | Z10: 0.68 | AA10: 0.682 | AB10: 0.685
A11: 52 | B11: 0.705 | C11: 0.707 | D11: 0.709 | E11: 0.712 | F11: 0.714 | G11: 0.716 | H11: 0.719 | I11: 0.721 | J11: 0.723 | K11: 0.726 | L11: 0.728 | M11: 0.73 | P11: 52 | Q11: 0.687 | R11: 0.69 | S11: 0.692 | T11: 0.695 | U11: 0.697 | V11: 0.7 | W11: 0.702 | X11: 0.705 | Y11: 0.707 | Z11: 0.71 | AA11: 0.712 | AB11: 0.715
A12: 53 | B12: 0.733 | C12: 0.735 | D12: 0.738 | E12: 0.74 | F12: 0.743 | G12: 0.745 | H12: 0.748 | I12: 0.75 | J12: 0.753 | K12: 0.755 | L12: 0.758 | M12: 0.76 | P12: 53 | Q12: 0.717 | R12: 0.72 | S12: 0.723 | T12: 0.725 | U12: 0.728 | V12: 0.731 | W12: 0.733 | X12: 0.736 | Y12: 0.739 | Z12: 0.742 | AA12: 0.744 | AB12: 0.747
A13: 54 | B13: 0.763 | C13: 0.766 | D13: 0.768 | E13: 0.771 | F13: 0.774 | G13: 0.777 | H13: 0.779 | I13: 0.782 | J13: 0.785 | K13: 0.788 | L13: 0.79 | M13: 0.793 | P13: 54 | Q13: 0.75 | R13: 0.753 | S13: 0.756 | T13: 0.759 | U13: 0.762 | V13: 0.765 | W13: 0.768 | X13: 0.771 | Y13: 0.774 | Z13: 0.777 | AA13: 0.78 | AB13: 0.783
A14: 55 | B14: 0.796 | C14: 0.799 | D14: 0.802 | E14: 0.805 | F14: 0.808 | G14: 0.811 | H14: 0.814 | I14: 0.817 | J14: 0.82 | K14: 0.822 | L14: 0.825 | M14: 0.828 | P14: 55 | Q14: 0.786 | R14: 0.789 | S14: 0.792 | T14: 0.795 | U14: 0.798 | V14: 0.801 | W14: 0.805 | X14: 0.808 | Y14: 0.811 | Z14: 0.814 | AA14: 0.817 | AB14: 0.82
A15: 56 | B15: 0.831 | C15: 0.835 | D15: 0.838 | E15: 0.841 | F15: 0.844 | G15: 0.847 | H15: 0.85 | I15: 0.854 | J15: 0.857 | K15: 0.86 | L15: 0.863 | M15: 0.866 | P15: 56 | Q15: 0.824 | R15: 0.827 | S15: 0.83 | T15: 0.834 | U15: 0.837 | V15: 0.84 | W15: 0.844 | X15: 0.847 | Y15: 0.85 | Z15: 0.854 | AA15: 0.857 | AB15: 0.86
A16: 57 | B16: 0.869 | C16: 0.873 | D16: 0.876 | E16: 0.879 | F16: 0.883 | G16: 0.886 | H16: 0.89 | I16: 0.893 | J16: 0.896 | K16: 0.9 | L16: 0.903 | M16: 0.907 | P16: 57 | Q16: 0.864 | R16: 0.867 | S16: 0.871 | T16: 0.875 | U16: 0.878 | V16: 0.882 | W16: 0.885 | X16: 0.889 | Y16: 0.892 | Z16: 0.896 | AA16: 0.9 | AB16: 0.903
A17: 58 | B17: 0.91 | C17: 0.914 | D17: 0.917 | E17: 0.921 | F17: 0.924 | G17: 0.928 | H17: 0.932 | I17: 0.935 | J17: 0.939 | K17: 0.943 | L17: 0.946 | M17: 0.95 | P17: 58 | Q17: 0.907 | R17: 0.911 | S17: 0.915 | T17: 0.918 | U17: 0.922 | V17: 0.926 | W17: 0.93 | X17: 0.934 | Y17: 0.938 | Z17: 0.941 | AA17: 0.945 | AB17: 0.949
A18: 59 | B18: 0.953 | C18: 0.957 | D18: 0.961 | E18: 0.965 | F18: 0.969 | G18: 0.973 | H18: 0.977 | I18: 0.981 | J18: 0.985 | K18: 0.989 | L18: 0.993 | M18: 0.996 | P18: 59 | Q18: 0.953 | R18: 0.957 | S18: 0.961 | T18: 0.965 | U18: 0.969 | V18: 0.973 | W18: 0.977 | X18: 0.982 | Y18: 0.986 | Z18: 0.99 | AA18: 0.994 | AB18: 0.998
A20: Notes: | B20: (1) these factors are applicable to use to calculate the actuarial reduction on voluntary early retirement for 1995 section members’ main scheme benefits, 1995 section members’ NPA 60 Added Years’ benefits and 1995 section members’ NPA 60 Additional Pension benefits (contracts exercised from 1 April 2011 onwards) (subject to note 5)
B21: (2) benefits to be awarded are obtained by multiplying the accrued benefits (see note 3 below for Added Years’ benefits) by the relevant factor
B22: (3) amount of Added Years’ benefit must first be multiplied by an appropriate proportion. This is calculated as 'period for which contributions were paid divided by period for which contributions should have been paid'
B23: (4) reduced benefits to be calculated before any lump sum commutation option is exercised
B24: (5) factors NOT to be used for former members with preserved benefits retiring early below age 55 – see Table ERF3
A30: 2008
A31: TABLE ERF2 | B31: Updated 29/01/2019 | P31: TABLE ERF2 | R31: Prior to factor change
A32: NHS SUPERANNUATION SCHEME SCOTLAND: ACTUARIAL FACTORS | P32: NHS SUPERANNUATION SCHEME SCOTLAND: ACTUARIAL FACTORS
A33: BENEFITS PAYABLE TO THE MEMBER ON VOLUNTARY EARLY RETIREMENT (WITH ACTUARIAL REDUCTION) | P33: BENEFITS PAYABLE TO THE MEMBER ON VOLUNTARY EARLY RETIREMENT (WITH ACTUARIAL REDUCTION)
A34: MEMBERS OF 1995 or 2008 SECTION (RELATIVE TO PENSION AGE OF 65) | P34: MEMBERS OF 1995 or 2008 SECTION (RELATIVE TO PENSION AGE OF 65)
A36: Age: complete months | B36: 0 | C36: 1 | D36: 2 | E36: 3 | F36: 4 | G36: 5 | H36: 6 | I36: 7 | J36: 8 | K36: 9 | L36: 10 | M36: 11 | P36: Age: complete months | Q36: 0 | R36: 1 | S36: 2 | T36: 3 | U36: 4 | V36: 5 | W36: 6 | X36: 7 | Y36: 8 | Z36: 9 | AA36: 10 | AB36: 11
A37: PENSION FACTORS | P37: PENSION FACTORS
A38: Complete Years | P38: Complete Years
A39: 50 | B39: 0.51 | C39: 0.511 | D39: 0.513 | E39: 0.515 | F39: 0.516 | G39: 0.518 | H39: 0.519 | I39: 0.521 | J39: 0.522 | K39: 0.524 | L39: 0.525 | M39: 0.527 | P39: 50 | Q39: 0.485 | R39: 0.486 | S39: 0.488 | T39: 0.49 | U39: 0.491 | V39: 0.493 | W39: 0.495 | X39: 0.496 | Y39: 0.498 | Z39: 0.5 | AA39: 0.501 | AB39: 0.503
A40: 51 | B40: 0.528 | C40: 0.53 | D40: 0.532 | E40: 0.533 | F40: 0.535 | G40: 0.537 | H40: 0.538 | I40: 0.54 | J40: 0.542 | K40: 0.543 | L40: 0.545 | M40: 0.547 | P40: 51 | Q40: 0.505 | R40: 0.506 | S40: 0.508 | T40: 0.51 | U40: 0.512 | V40: 0.514 | W40: 0.515 | X40: 0.517 | Y40: 0.519 | Z40: 0.521 | AA40: 0.522 | AB40: 0.524
A41: 52 | B41: 0.548 | C41: 0.55 | D41: 0.552 | E41: 0.554 | F41: 0.556 | G41: 0.557 | H41: 0.559 | I41: 0.561 | J41: 0.563 | K41: 0.564 | L41: 0.566 | M41: 0.568 | P41: 52 | Q41: 0.526 | R41: 0.528 | S41: 0.53 | T41: 0.532 | U41: 0.534 | V41: 0.536 | W41: 0.538 | X41: 0.539 | Y41: 0.541 | Z41: 0.543 | AA41: 0.545 | AB41: 0.547
A42: 53 | B42: 0.57 | C42: 0.572 | D42: 0.574 | E42: 0.576 | F42: 0.578 | G42: 0.58 | H42: 0.581 | I42: 0.583 | J42: 0.585 | K42: 0.587 | L42: 0.589 | M42: 0.591 | P42: 53 | Q42: 0.549 | R42: 0.551 | S42: 0.553 | T42: 0.555 | U42: 0.557 | V42: 0.559 | W42: 0.562 | X42: 0.564 | Y42: 0.566 | Z42: 0.568 | AA42: 0.57 | AB42: 0.572
A43: 54 | B43: 0.593 | C43: 0.595 | D43: 0.597 | E43: 0.599 | F43: 0.601 | G43: 0.604 | H43: 0.606 | I43: 0.608 | J43: 0.61 | K43: 0.612 | L43: 0.614 | M43: 0.616 | P43: 54 | Q43: 0.574 | R43: 0.576 | S43: 0.579 | T43: 0.581 | U43: 0.583 | V43: 0.585 | W43: 0.588 | X43: 0.59 | Y43: 0.592 | Z43: 0.595 | AA43: 0.597 | AB43: 0.599
A44: 55 | B44: 0.618 | C44: 0.62 | D44: 0.623 | E44: 0.625 | F44: 0.627 | G44: 0.63 | H44: 0.632 | I44: 0.634 | J44: 0.636 | K44: 0.639 | L44: 0.641 | M44: 0.643 | P44: 55 | Q44: 0.601 | R44: 0.604 | S44: 0.606 | T44: 0.609 | U44: 0.611 | V44: 0.614 | W44: 0.616 | X44: 0.618 | Y44: 0.621 | Z44: 0.623 | AA44: 0.626 | AB44: 0.628
A45: 56 | B45: 0.646 | C45: 0.648 | D45: 0.65 | E45: 0.653 | F45: 0.655 | G45: 0.658 | H45: 0.66 | I45: 0.663 | J45: 0.665 | K45: 0.668 | L45: 0.67 | M45: 0.672 | P45: 56 | Q45: 0.63 | R45: 0.633 | S45: 0.636 | T45: 0.638 | U45: 0.641 | V45: 0.643 | W45: 0.646 | X45: 0.648 | Y45: 0.651 | Z45: 0.654 | AA45: 0.656 | AB45: 0.659
A46: 57 | B46: 0.675 | C46: 0.677 | D46: 0.68 | E46: 0.683 | F46: 0.685 | G46: 0.688 | H46: 0.69 | I46: 0.693 | J46: 0.696 | K46: 0.698 | L46: 0.701 | M46: 0.703 | P46: 57 | Q46: 0.661 | R46: 0.664 | S46: 0.667 | T46: 0.67 | U46: 0.672 | V46: 0.675 | W46: 0.678 | X46: 0.681 | Y46: 0.683 | Z46: 0.686 | AA46: 0.689 | AB46: 0.692
A47: 58 | B47: 0.706 | C47: 0.709 | D47: 0.712 | E47: 0.714 | F47: 0.717 | G47: 0.72 | H47: 0.723 | I47: 0.726 | J47: 0.728 | K47: 0.731 | L47: 0.734 | M47: 0.737 | P47: 58 | Q47: 0.694 | R47: 0.697 | S47: 0.7 | T47: 0.703 | U47: 0.706 | V47: 0.709 | W47: 0.712 | X47: 0.715 | Y47: 0.718 | Z47: 0.721 | AA47: 0.724 | AB47: 0.727
A48: 59 | B48: 0.74 | C48: 0.743 | D48: 0.746 | E48: 0.749 | F48: 0.752 | G48: 0.755 | H48: 0.758 | I48: 0.761 | J48: 0.764 | K48: 0.766 | L48: 0.769 | M48: 0.772 | P48: 59 | Q48: 0.73 | R48: 0.733 | S48: 0.736 | T48: 0.739 | U48: 0.742 | V48: 0.745 | W48: 0.748 | X48: 0.752 | Y48: 0.755 | Z48: 0.758 | AA48: 0.761 | AB48: 0.764
A49: 60 | B49: 0.775 | C49: 0.779 | D49: 0.782 | E49: 0.785 | F49: 0.788 | G49: 0.792 | H49: 0.795 | I49: 0.798 | J49: 0.801 | K49: 0.804 | L49: 0.808 | M49: 0.811 | P49: 60 | Q49: 0.767 | R49: 0.771 | S49: 0.774 | T49: 0.777 | U49: 0.781 | V49: 0.784 | W49: 0.787 | X49: 0.791 | Y49: 0.794 | Z49: 0.797 | AA49: 0.801 | AB49: 0.804
A50: 61 | B50: 0.814 | C50: 0.818 | D50: 0.821 | E50: 0.825 | F50: 0.828 | G50: 0.831 | H50: 0.835 | I50: 0.838 | J50: 0.842 | K50: 0.845 | L50: 0.849 | M50: 0.852 | P50: 61 | Q50: 0.808 | R50: 0.811 | S50: 0.815 | T50: 0.819 | U50: 0.822 | V50: 0.826 | W50: 0.829 | X50: 0.833 | Y50: 0.837 | Z50: 0.84 | AA50: 0.844 | AB50: 0.847
A51: 62 | B51: 0.856 | C51: 0.86 | D51: 0.863 | E51: 0.867 | F51: 0.871 | G51: 0.875 | H51: 0.878 | I51: 0.882 | J51: 0.886 | K51: 0.89 | L51: 0.893 | M51: 0.897 | P51: 62 | Q51: 0.851 | R51: 0.855 | S51: 0.859 | T51: 0.863 | U51: 0.867 | V51: 0.87 | W51: 0.874 | X51: 0.878 | Y51: 0.882 | Z51: 0.886 | AA51: 0.89 | AB51: 0.894
A52: 63 | B52: 0.901 | C52: 0.905 | D52: 0.909 | E52: 0.913 | F52: 0.917 | G52: 0.921 | H52: 0.926 | I52: 0.93 | J52: 0.934 | K52: 0.938 | L52: 0.942 | M52: 0.946 | P52: 63 | Q52: 0.898 | R52: 0.902 | S52: 0.906 | T52: 0.91 | U52: 0.914 | V52: 0.919 | W52: 0.923 | X52: 0.927 | Y52: 0.931 | Z52: 0.935 | AA52: 0.94 | AB52: 0.944
A53: 64 | B53: 0.95 | C53: 0.954 | D53: 0.958 | E53: 0.963 | F53: 0.967 | G53: 0.971 | H53: 0.975 | I53: 0.979 | J53: 0.983 | K53: 0.988 | L53: 0.992 | M53: 0.996 | P53: 64 | Q53: 0.948 | R53: 0.953 | S53: 0.957 | T53: 0.962 | U53: 0.966 | V53: 0.971 | W53: 0.975 | X53: 0.98 | Y53: 0.984 | Z53: 0.989 | AA53: 0.993 | AB53: 0.998
A55: Notes: | B55: (1) these factors are applicable to use for 2008 section members’ main scheme benefits, 1995 section members’ NPA 65 Added Years’ pension or 1995 or 2008 section members’ NPA 65 Additional Pension (contracts taken from 1 April 2011 onwards). See also paragraph 1.6 of the guidance.
B56: (2) benefits to be awarded are obtained by multiplying the accrued benefits (for Added Years’ pension see note 3) by the relevant factor
B57: (3) amount of Added Years’ benefit must first be multiplied by an appropriate proportion. This is calculated as 'period for which contributions were paid divided by period for which contributions should have been paid'
B58: (4) reduced benefits to be calculated before any lump sum commutation option is exercised
B59: (5) shaded figures to be used for 1995 section members only

Sheet VERA LS Factors (hidden)
A2: TABLE ERF7 | B2: Updated 29/01/2019 | P2: TABLE ERF7 | R2: Prior to factor change
A3: NHS SUPERANNUATION SCHEME SCOTLAND: ACTUARIAL FACTORS | P3: NHS SUPERANNUATION SCHEME SCOTLAND: ACTUARIAL FACTORS
A4: BENEFITS PAYABLE TO THE MEMBER ON VOLUNTARY EARLY RETIREMENT (WITH ACTUARIAL REDUCTION) | P4: BENEFITS PAYABLE TO THE MEMBER ON VOLUNTARY EARLY RETIREMENT (WITH ACTUARIAL REDUCTION)
A5: MEMBERS OF 1995 SECTION (RELATIVE TO PENSION AGE OF 60) | P5: MEMBERS OF 1995 SECTION (RELATIVE TO PENSION AGE OF 60)
A7: AGE: complete months | B7: 0 | C7: 1 | D7: 2 | E7: 3 | F7: 4 | G7: 5 | H7: 6 | I7: 7 | J7: 8 | K7: 9 | L7: 10 | M7: 11 | P7: AGE: complete months | Q7: 0 | R7: 1 | S7: 2 | T7: 3 | U7: 4 | V7: 5 | W7: 6 | X7: 7 | Y7: 8 | Z7: 9 | AA7: 10 | AB7: 11
A8: LUMP SUM FACTORS | P8: LUMP SUM FACTORS
A9: Complete Years: | P9: Complete Years:
A10: 50 | B10: 0.789 | C10: 0.79 | D10: 0.792 | E10: 0.794 | F10: 0.795 | G10: 0.797 | H10: 0.798 | I10: 0.8 | J10: 0.801 | K10: 0.803 | L10: 0.805 | M10: 0.806 | P10: 50 | Q10: 0.732 | R10: 0.734 | S10: 0.736 | T10: 0.738 | U10: 0.74 | V10: 0.742 | W10: 0.744 | X10: 0.746 | Y10: 0.748 | Z10: 0.75 | AA10: 0.751 | AB10: 0.753
A11: 51 | B11: 0.808 | C11: 0.809 | D11: 0.811 | E11: 0.813 | F11: 0.814 | G11: 0.816 | H11: 0.817 | I11: 0.819 | J11: 0.821 | K11: 0.822 | L11: 0.824 | M11: 0.826 | P11: 51 | Q11: 0.755 | R11: 0.757 | S11: 0.759 | T11: 0.761 | U11: 0.763 | V11: 0.765 | W11: 0.767 | X11: 0.769 | Y11: 0.771 | Z11: 0.773 | AA11: 0.775 | AB11: 0.777
A12: 52 | B12: 0.827 | C12: 0.829 | D12: 0.83 | E12: 0.832 | F12: 0.834 | G12: 0.835 | H12: 0.837 | I12: 0.839 | J12: 0.84 | K12: 0.842 | L12: 0.844 | M12: 0.845 | P12: 52 | Q12: 0.779 | R12: 0.781 | S12: 0.783 | T12: 0.785 | U12: 0.787 | V12: 0.789 | W12: 0.791 | X12: 0.793 | Y12: 0.795 | Z12: 0.797 | AA12: 0.799 | AB12: 0.801
A13: 53 | B13: 0.847 | C13: 0.849 | D13: 0.85 | E13: 0.852 | F13: 0.854 | G13: 0.856 | H13: 0.857 | I13: 0.859 | J13: 0.861 | K13: 0.862 | L13: 0.864 | M13: 0.866 | P13: 53 | Q13: 0.803 | R13: 0.805 | S13: 0.808 | T13: 0.81 | U13: 0.812 | V13: 0.814 | W13: 0.816 | X13: 0.818 | Y13: 0.82 | Z13: 0.822 | AA13: 0.824 | AB13: 0.827
A14: 54 | B14: 0.867 | C14: 0.869 | D14: 0.871 | E14: 0.873 | F14: 0.874 | G14: 0.876 | H14: 0.878 | I14: 0.88 | J14: 0.881 | K14: 0.883 | L14: 0.885 | M14: 0.886 | P14: 54 | Q14: 0.829 | R14: 0.831 | S14: 0.833 | T14: 0.835 | U14: 0.837 | V14: 0.84 | W14: 0.842 | X14: 0.844 | Y14: 0.846 | Z14: 0.848 | AA14: 0.851 | AB14: 0.853
A15: 55 | B15: 0.888 | C15: 0.89 | D15: 0.892 | E15: 0.894 | F15: 0.895 | G15: 0.897 | H15: 0.899 | I15: 0.901 | J15: 0.902 | K15: 0.904 | L15: 0.906 | M15: 0.908 | P15: 55 | Q15: 0.855 | R15: 0.857 | S15: 0.859 | T15: 0.862 | U15: 0.864 | V15: 0.866 | W15: 0.869 | X15: 0.871 | Y15: 0.873 | Z15: 0.875 | AA15: 0.878 | AB15: 0.88
A16: 56 | B16: 0.909 | C16: 0.911 | D16: 0.913 | E16: 0.915 | F16: 0.917 | G16: 0.919 | H16: 0.92 | I16: 0.922 | J16: 0.924 | K16: 0.926 | L16: 0.928 | M16: 0.93 | P16: 56 | Q16: 0.882 | R16: 0.885 | S16: 0.887 | T16: 0.889 | U16: 0.892 | V16: 0.894 | W16: 0.896 | X16: 0.899 | Y16: 0.901 | Z16: 0.903 | AA16: 0.906 | AB16: 0.908
A17: 57 | B17: 0.931 | C17: 0.933 | D17: 0.935 | E17: 0.937 | F17: 0.939 | G17: 0.941 | H17: 0.942 | I17: 0.944 | J17: 0.946 | K17: 0.948 | L17: 0.95 | M17: 0.952 | P17: 57 | Q17: 0.91 | R17: 0.913 | S17: 0.915 | T17: 0.918 | U17: 0.92 | V17: 0.923 | W17: 0.925 | X17: 0.927 | Y17: 0.93 | Z17: 0.932 | AA17: 0.935 | AB17: 0.937
A18: 58 | B18: 0.954 | C18: 0.956 | D18: 0.957 | E18: 0.959 | F18: 0.961 | G18: 0.963 | H18: 0.965 | I18: 0.967 | J18: 0.969 | K18: 0.971 | L18: 0.973 | M18: 0.975 | P18: 58 | Q18: 0.94 | R18: 0.942 | S18: 0.945 | T18: 0.947 | U18: 0.95 | V18: 0.952 | W18: 0.955 | X18: 0.957 | Y18: 0.96 | Z18: 0.962 | AA18: 0.965 | AB18: 0.967
A19: 59 | B19: 0.977 | C19: 0.979 | D19: 0.98 | E19: 0.982 | F19: 0.984 | G19: 0.986 | H19: 0.988 | I19: 0.99 | J19: 0.992 | K19: 0.994 | L19: 0.996 | M19: 0.998 | P19: 59 | Q19: 0.97 | R19: 0.973 | S19: 0.975 | T19: 0.978 | U19: 0.98 | V19: 0.983 | W19: 0.986 | X19: 0.988 | Y19: 0.991 | Z19: 0.993 | AA19: 0.996 | AB19: 0.999
A21: Notes: | B21: (1) these factors are applicable to use to calculate the actuarial reduction on voluntary early retirement for 1995 section members’ main scheme lump sum benefits, 1995 section members’ NPA 60 Added Years’ lump sum benefits , 1995 section members’ NPA 60 unreduced retirement lump sum benefits and the amount of 2008 section members’ mandatory lump sum benefits payable on voluntary early retirement (where applicable) (subject to note 4)
B22: (2) benefits to be awarded are obtained by multiplying the accrued lump sum (for Added Years’ lump sum and unreduced retirement lump sums see note 3) by the relevant factor
B23: (3) the amount of the Added Years’ unreduced retirement lump sum or the unreduced retirement lump sum must first be multiplied by an appropriate proportion. This is calculated as 'period for which contributions were paid divided by period for which contributions should have been paid'
B24: (4) factors are NOT to be used for former members with preserved benefits retiring early below age 55 – see Table ERF9

Sheet PI Data (hidden)
A1: =MIN($B$2:$Z$2) -> 2019
A2: =MAX($B$2:$Z$2) -> 2020 | B2: 2019 | C2: 2020
A3: 1945-01-01 | B3: 41.6404 | C3: 42.3483
A4: 1946-01-01 | B4: 37.852 | C4: 38.4955
A5: 1947-01-01 | B5: 37.5135 | C5: 38.1512
A6: 1948-01-01 | B6: 35.1276 | C6: 35.7247
A7: 1949-01-01 | B7: 34.1603 | C7: 34.741
A8: 1950-01-01 | B8: 33.1931 | C8: 33.7573
A9: 1951-01-01 | B9: 30.4041 | C9: 30.921
A10: 1952-01-01 | B10: 27.857 | C10: 28.3306
A11: 1953-01-01 | B11: 27.0026 | C11: 27.4616
A12: 1954-01-01 | B12: 26.519 | C12: 26.9698
A13: 1955-01-01 | B13: 25.3744 | C13: 25.8058
A14: 1956-01-01 | B14: 24.1976 | C14: 24.6089
A15: 1957-01-01 | B15: 23.3431 | C15: 23.74
A16: 1958-01-01 | B16: 22.6338 | C16: 23.0186
A17: 1959-01-01 | B17: 22.521 | C17: 22.9038
A18: 1960-01-01 | B18: 22.2953 | C18: 22.6743
A19: 1961-01-01 | B19: 21.5698 | C19: 21.9365
A20: 1962-01-01 | B20: 20.6671 | C20: 21.0184
A21: 1963-01-01 | B21: 20.2802 | C21: 20.6249
A22: 1964-01-01 | B22: 19.6353 | C22: 19.9691
A23: 1965-01-01 | B23: 18.7326 | C23: 19.051
A24: 1966-01-01 | B24: 18.0232 | C24: 18.3296
A25: 1967-01-01 | B25: 17.588 | C25: 17.887
A26: 1968-01-01 | B26: 16.798 | C26: 17.0836
A27: 1969-01-01 | B27: 16.121 | C27: 16.395
A28: 1969-04-02 | B28: 15.8477 | C28: 16.1171
A29: 1969-10-02 | B29: 15.5745 | C29: 15.8393
A30: 1970-04-02 | B30: 15.028 | C30: 15.2835
A31: 1970-10-02 | B31: 14.4815 | C31: 14.7277
A32: 1971-04-02 | B32: 13.7986 | C32: 14.0331
A33: 1971-10-02 | B33: 13.1273 | C33: 13.3505
A34: 1972-04-02 | B34: 12.8662 | C34: 13.085
A35: 1972-07-02 | B35: 12.5563 | C35: 12.7697
A36: 1973-01-02 | B36: 12.0672 | C36: 12.2723
A37: 1973-07-02 | B37: 11.5296 | C37: 11.7256
A38: 1974-01-02 | B38: 10.9634 | C38: 11.1498
A39: 1974-07-02 | B39: 10.0103 | C39: 10.1805
A40: 1975-01-02 | B40: 9.2826 | C40: 9.4404
A41: 1975-07-02 | B41: 8.1093 | C41: 8.2472
A42: 1976-01-02 | B42: 7.401787155 | C42: 7.527617535
A43: 1976-07-02 | B43: 6.907154007 | C43: 7.024575624
A44: 1977-01-02 | B44: 6.438970347 | C44: 6.548432841
A45: 1977-07-02 | B45: 5.89844463 | C45: 5.998718188
A46: 1978-01-02 | B46: 5.677791136 | C46: 5.774313584
A47: 1978-07-02 | B47: 5.720474318 | C47: 5.81772238
A48: 1978-07-28 | B48: 5.65552165 | C48: 5.751665516
A49: 1978-08-28 | B49: 5.585929505 | C49: 5.680890305
A50: 1978-09-28 | B50: 5.520976836 | C50: 5.614833441
A51: 1978-10-28 | B51: 5.451384691 | C51: 5.54405823
A52: 1978-11-28 | B52: 5.381792546 | C52: 5.473283018
A53: 1978-12-28 | B53: 5.316839877 | C53: 5.407226154
A54: 1979-01-28 | B54: 5.247247732 | C54: 5.336450943
A55: 1979-02-28 | B55: 5.182295064 | C55: 5.270394079
A56: 1979-03-28 | B56: 5.112702919 | C56: 5.199618867
A57: 1979-04-28 | B57: 5.04775025 | C57: 5.133562003
A58: 1979-05-28 | B58: 4.978158105 | C58: 5.062786792
A59: 1979-06-28 | B59: 4.90856596 | C59: 4.99201158
A60: 1979-07-28 | B60: 4.843613291 | C60: 4.925954716
A61: 1979-08-28 | B61: 4.774021146 | C61: 4.855179505
A62: 1979-09-28 | B62: 4.709068478 | C62: 4.789122641
A63: 1979-10-28 | B63: 4.639476333 | C63: 4.718347429
A64: 1979-12-09 | B64: 4.583722969 | C64: 4.661646259
A65: 1980-01-09 | B65: 4.531951989 | C65: 4.608995171
A66: 1980-02-09 | B66: 4.476198625 | C66: 4.552294001
A67: 1980-03-09 | B67: 4.420445261 | C67: 4.49559283
A68: 1980-04-09 | B68: 4.364691898 | C68: 4.438891659
A69: 1980-05-09 | B69: 4.312920917 | C69: 4.386240572
A70: 1980-06-09 | B70: 4.257167553 | C70: 4.329539401
A71: 1980-07-09 | B71: 4.20141419 | C71: 4.27283823
A72: 1980-08-09 | B72: 4.145660826 | C72: 4.216137059
A73: 1980-09-09 | B73: 4.093889846 | C73: 4.163485972
A74: 1980-10-09 | B74: 4.038136482 | C74: 4.106784801
A75: 1980-11-09 | B75: 3.982383118 | C75: 4.05008363
A76: 1980-12-08 | B76: 3.954996475 | C76: 4.022231414
A77: 1981-01-08 | B77: 3.927244676 | C77: 3.994007835
A78: 1981-02-08 | B78: 3.899858033 | C78: 3.966155618
A79: 1981-03-08 | B79: 3.872106234 | C79: 3.937932039
A80: 1981-04-08 | B80: 3.84471959 | C80: 3.910079822
A81: 1981-05-08 | B81: 3.816967792 | C81: 3.881856243
A82: 1981-06-08 | B82: 3.789581148 | C82: 3.854004027
A83: 1981-07-08 | B83: 3.761829349 | C83: 3.825780447
A84: 1981-08-08 | B84: 3.734442706 | C84: 3.797928231
A85: 1981-09-08 | B85: 3.706690907 | C85: 3.769704652
A86: 1981-10-08 | B86: 3.679304264 | C86: 3.741852435
A87: 1981-11-08 | B87: 3.651552465 | C87: 3.713628856
A88: 1981-12-07 | B88: 3.621945283 | C88: 3.683518352
A89: 1982-01-07 | B89: 3.592338101 | C89: 3.653407848
A90: 1982-02-07 | B90: 3.562730919 | C90: 3.623297343
A91: 1982-03-07 | B91: 3.529834049 | C91: 3.589841227
A92: 1982-04-07 | B92: 3.500226867 | C92: 3.559730723
A93: 1982-05-07 | B93: 3.470619685 | C93: 3.529620219
A94: 1982-06-07 | B94: 3.441012503 | C94: 3.499509715
A95: 1982-07-07 | B95: 3.411405321 | C95: 3.469399211
A96: 1982-08-07 | B96: 3.381798139 | C96: 3.439288706
A97: 1982-09-07 | B97: 3.34890127 | C97: 3.40583259
A98: 1982-10-07 | B98: 3.319294088 | C98: 3.375722086
A99: 1982-11-07 | B99: 3.289686905 | C99: 3.345611582
A100: 1982-12-06 | B100: 3.280169971 | C100: 3.33593286
A101: 1983-01-06 | B101: 3.270653037 | C101: 3.326254138
A102: 1983-02-06 | B102: 3.261136103 | C102: 3.316575416
A103: 1983-03-06 | B103: 3.251619169 | C103: 3.306896694
A104: 1983-04-06 | B104: 3.242102235 | C104: 3.297217972
A105: 1983-05-06 | B105: 3.2325853 | C105: 3.28753925
A106: 1983-06-06 | B106: 3.219896055 | C106: 3.274634287
A107: 1983-07-06 | B107: 3.210379121 | C107: 3.264955565
A108: 1983-08-06 | B108: 3.200862187 | C108: 3.255276843
A109: 1983-09-06 | B109: 3.191345253 | C109: 3.245598121
A110: 1983-10-06 | B110: 3.181828318 | C110: 3.235919399
A111: 1983-11-06 | B111: 3.172311384 | C111: 3.226240677
A112: 1983-12-11 | B112: 3.160237887 | C112: 3.21396193
A113: 1984-01-11 | B113: 3.14816439 | C113: 3.201683184
A114: =DATE(YEAR(A113),MONTH(A113) + 1,DAY(A113)) -> 1984-02-11 | B114: 3.133072518 | C114: 3.18633475
A115: 1984-03-11 | B115: 3.120999021 | C115: 3.174056004
A116: 1984-04-11 | B116: 3.108925524 | C116: 3.161777257
A117: 1984-05-11 | B117: 3.096852027 | C117: 3.149498511
A118: 1984-06-11 | B118: 3.081760155 | C118: 3.134150077
A119: 1984-07-11 | B119: 3.069686658 | C119: 3.121871331
A120: 1984-08-11 | B120: 3.057613161 | C120: 3.109592584
A121: 1984-09-11 | B121: 3.045539664 | C121: 3.097313837
A122: 1984-10-11 | B122: 3.030447792 | C122: 3.081965404
A123: 1984-11-11 | B123: 3.018374295 | C123: 3.069686657
A124: 1984-12-10 | B124: 3.001448832 | C124: 3.052473461
A125: =DATE(YEAR(A124),MONTH(A124) + 1,DAY(A124)) -> 1985-01-10 | B125: 2.984523368 | C125: 3.035260265
A126: 1985-02-10 | B126: 2.970418816 | C126: 3.020915935
A127: 1985-03-10 | B127: 2.953493352 | C127: 3.003702739
A128: 1985-04-10 | B128: 2.936567889 | C128: 2.986489542
A129: 1985-05-10 | B129: 2.919642426 | C129: 2.969276346
A130: 1985-06-10 | B130: 2.902716962 | C130: 2.95206315
A131: 1985-07-10 | B131: 2.885791499 | C131: 2.934849954
A132: 1985-08-10 | B132: 2.871686946 | C132: 2.920505624
A133: 1985-09-10 | B133: 2.854761483 | C133: 2.903292427
A134: 1985-10-10 | B134: 2.83783602 | C134: 2.886079231
A135: 1985-11-10 | B135: 2.820910556 | C135: 2.868866035
A136: 1985-12-13 | B136: 2.817004251 | C136: 2.864893322
A137: =DATE(YEAR(A136),MONTH(A136) + 1,DAY(A136)) -> 1986-01-13 | B137: 2.813376967 | C137: 2.861204375
A138: 1986-02-13 | B138: 2.809470662 | C138: 2.857231662
A139: 1986-03-13 | B139: 2.805564356 | C139: 2.85325895
A140: 1986-04-13 | B140: 2.801658051 | C140: 2.849286237
A141: 1986-05-13 | B141: 2.798030767 | C141: 2.84559729
A142: 1986-06-13 | B142: 2.794124462 | C142: 2.841624577
A143: 1986-07-13 | B143: 2.790218157 | C143: 2.837651864
A144: 1986-08-22 | B144: 2.783112802 | C144: 2.830425719
A145: =DATE(YEAR(A144),MONTH(A144) + 1,DAY(A144)) -> 1986-09-22 | B145: 2.776007447 | C145: 2.823199573
A146: 1986-10-22 | B146: 2.768628809 | C146: 2.815695498
A147: 1986-11-22 | B147: 2.761523455 | C147: 2.808469353
A148: 1986-12-22 | B148: 2.7544181 | C148: 2.801243207
A149: 1987-01-22 | B149: 2.747312745 | C149: 2.794017061
A150: 1987-02-22 | B150: 2.739934107 | C150: 2.786512987
A151: 1987-03-22 | B151: 2.732828753 | C151: 2.779286841
A152: 1987-04-27 | B152: 2.723649386 | C152: 2.769951424
A153: =DATE(YEAR(A152),MONTH(A152) + 1,DAY(A152)) -> 1987-05-27 | B153: 2.714470018 | C153: 2.760616008
A154: 1987-06-27 | B154: 2.705290651 | C154: 2.751280591
A155: 1987-07-27 | B155: 2.696111284 | C155: 2.741945175
A156: 1987-08-27 | B156: 2.686931917 | C156: 2.732609759
A157: 1987-09-27 | B157: 2.677752549 | C157: 2.723274342
A158: 1987-10-27 | B158: 2.668573182 | C158: 2.713938926
A159: 1987-11-27 | B159: 2.659393815 | C159: 2.704603509
A160: 1987-12-27 | B160: 2.650214448 | C160: 2.695268093
A161: 1988-01-27 | B161: 2.641035081 | C161: 2.685932676
A162: 1988-02-27 | B162: 2.631855713 | C162: 2.67659726
A163: 1988-03-27 | B163: 2.622676346 | C163: 2.667261843
A164: 1988-04-26 | B164: 2.610541205 | C164: 2.654920405
A165: =DATE(YEAR(A164),MONTH(A164) + 1,DAY(A164)) -> 1988-05-26 | B165: 2.598406065 | C165: 2.642578967
A166: 1988-06-26 | B166: 2.586270924 | C166: 2.630237529
A167: 1988-07-26 | B167: 2.573888127 | C167: 2.617644225
A168: 1988-08-26 | B168: 2.561752986 | C168: 2.605302786
A169: 1988-09-26 | B169: 2.549617846 | C169: 2.592961348
A170: 1988-10-26 | B170: 2.537482705 | C170: 2.58061991
A171: 1988-11-26 | B171: 2.525347564 | C171: 2.568278472
A172: 1988-12-26 | B172: 2.512964767 | C172: 2.555685168
A173: 1989-01-26 | B173: 2.500829626 | C173: 2.543343729
A174: 1989-02-26 | B174: 2.488694486 | C174: 2.531002291
A175: 1989-03-26 | B175: 2.476559345 | C175: 2.518660853
A176: 1989-04-25 | B176: 2.462059044 | C176: 2.503914047
A177: =DATE(YEAR(A176),MONTH(A176) + 1,DAY(A176)) -> 1989-05-25 | B177: 2.447328579 | C177: 2.488933165
A178: 1989-06-25 | B178: 2.432828278 | C178: 2.474186358
A179: 1989-07-25 | B179: 2.418327977 | C179: 2.459439552
A180: 1989-08-25 | B180: 2.403597513 | C180: 2.44445867
A181: 1989-09-25 | B181: 2.389097212 | C181: 2.429711864
A182: 1989-10-25 | B182: 2.374596911 | C182: 2.414965058
A183: 1989-11-25 | B183: 2.359866446 | C183: 2.399984175
A184: 1989-12-25 | B184: 2.345366145 | C184: 2.385237369
A185: 1990-01-25 | B185: 2.330865844 | C185: 2.370490563
A186: 1990-02-25 | B186: 2.31613538 | C186: 2.355509681
A187: 1990-03-25 | B187: 2.301635079 | C187: 2.340762875
A188: 1990-04-24 | B188: 2.282748804 | C188: 2.321555533
A189: =DATE(YEAR(A188),MONTH(A188) + 1,DAY(A188)) -> 1990-05-24 | B189: 2.263862528 | C189: 2.302348191
A190: 1990-06-24 | B190: 2.245183795 | C190: 2.283351919
A191: 1990-07-24 | B191: 2.226297519 | C191: 2.264144577
A192: 1990-08-24 | B192: 2.207411244 | C192: 2.244937235
A193: 1990-09-24 | B193: 2.188524969 | C193: 2.225729893
A194: 1990-10-24 | B194: 2.169638694 | C194: 2.206522551
A195: 1990-11-24 | B195: 2.150752419 | C195: 2.187315209
A196: 1990-12-24 | B196: 2.132073685 | C196: 2.168318937
A197: 1991-01-24 | B197: 2.11318741 | C197: 2.149111595
A198: 1991-02-24 | B198: 2.094301134 | C198: 2.129904253
A199: 1991-03-24 | B199: 2.075414859 | C199: 2.110696911
A200: 1991-04-22 | B200: 2.068636367 | C200: 2.103803185
... 347 more rows

Sheet Contents
E4: NHS Superannuation Scheme (Scotland) Preserved Benefits Estimate Calculator
B29: Disclaimer
B31: This calculator is intended for illustrative purposes only. This is not a statement of your legal entitlement. While every care has been taken in the preparation of this ready reckoner the Scottish Public Pensions Agency will accept no responsibility for the accuracy of the information it provides.
B35: Please refer to the SPPA website for contact information or any other details of benefits available through the NHS Superannuation Scheme (Scotland).

Sheet Guidance Notes (hidden)
B1: Guidance Notes
B5: Understanding your results This calculator is solely for guidance purposes and is an estimate only. It is not a statement of your legal entitlement and is not intended to provide you with financial advice. While every care has been taken in the preparation of this calculator the Scottish Public Pensions Agency will accept no responsibility for the accuracy of the information it provides. If you require financial advice, you should contact an authorised independent financial adviser. As you are no longer in pensionable employment, your basic retirement benefits should remain unchanged. These will be index linked in line with inflation. Please note, this calculator is only for 1995 or 2008 members. You should have received a preserved letter detailing the breakdown of your deferred retirement benefits. You will need this information to allow you to project a current estimate of your benefits. Please note that if your pension breakdown may not provide you with your deemed date which is used to calculate how much pension increase you may be entitled to. If this is the case the calculator will assume this date is the day after your last day worked (final year). If your pensionable salary used is your second or third last year this may underinflate the pension increase you are entitled to. Alternatively you can contact the Agency and request your deemed date. If your date of leaving is after 30 March 2000, you may claim your benefits prior to your Normal Pension Age (NPA) if you wish but this will be subject to a reduction as it will be paid early. If you are aged 55 or over the calculator will allow you to estimate your retirement benefits to include the VERA reduction. If you simply wish to have a current estimate of your deferred benefits please state "No" when prompted. To calculate your estimated benefits, you need to complete the necessary information under "Member Details". Once you have completed all the relevant information your estimated benefits will be shown on the "Benefit Certificate" and "Letter". If you do not complete all of the necessary information your estimate will not work. Each page allows you to go back to previous stages if you wish by simply clicking on the relevant box to where you wish to go. Practitioners If you are a Practitioner, please use the "Practitioners Member Details" as your preserved benefits are calculated differently. Once you have completed all the relevant information your estimated benefits will be shown on the "Practitioners Benefit Certificate" and "Practitioners Letter". If you do not complete all of the necessary information your estimate will not work.
B41: Disclaimer
B43: This calculator is intended for illustrative purposes only. This is not a statement of your legal entitlement. While every care has been taken in the preparation of this ready reckoner the Scottish Public Pensions Agency will accept no responsibility for the accuracy of the information it provides.
B48: Please refer to the SPPA website for contact information or any other details of benefits available through the NHS Superannuation Scheme (Scotland).

Sheet Member Details (hidden)
F2: NHS Superannuation Scheme (Scotland) Preserved Benefits Estimate Calculator
E6: Member Details | J6: PLEASE COMPLETE ALL NECESSARY DATA
I8: Members Name | P8: Eg: Mr | J | Smith
H10: Superannuation Number
I12: Date of Birth | T12: =DATEDIF(K12,NOW(),"Y") -> 120 | U12: Yes
U13: No
I14: Scheme | S14: 1995
S15: 2008
H16: Last Day Worked in NHS | Q16: =IF(R16>=S16,"VERA","AGE") -> AGE | R16: =K16 -> 0 | S16: 36616
I18: Pensionable Salary
K20: Years | M20: Days
H21: Total Reckonable Service
G23: Deemed Date for Pension Increase | S23: =IF(K23="",K16+1,"") -> 1900-01-01
J25: =IF(T12>=55,"Are you looking for a Retirement Estimate? ","") -> Are you looking for a Retirement Estimate? | O25: =IF(K25="Yes","Retirement Date ","") ->  | S25: Yes
S26: No
I30: Additional Information if Letter and Certificate Required
I32: Address Line 1
I33: Address Line 2
I34: Address Line 3
I35: Address Line 4
I36: Post Code
I38: NI Number

Sheet Age (hidden)
C3: Period Calculator V 1.3
Q4: 1 | R4: 365 | S4: 31 | T4: 31
Q5: 2 | R5: 334 | S5: 59 | T5: 28
D6: dd | E6: mm | F6: yyyy | Q6: 3 | R6: 306 | S6: 90 | T6: 31
C7: Date From : | D7: =DAY(M15) -> 0 | E7: =MONTH(M15) -> 1 | F7: =YEAR(M15) -> 1900 | G7: =IF(AA9>0,AA9,0) -> 43967 | H7: Days | Q7: 4 | R7: 275 | S7: 120 | T7: 30 | U7: =D7 -> 0 | V7: =IF(E7>0,VLOOKUP($E$7,Table50,2),0) -> 365 | W7: =F7 -> 1900 | X7: =IF(E7>0,VLOOKUP($E$7,Table50,4),0) -> 31 | Y7: =(V7+1)-U7 -> 366 | Z7: =(W7*365)-Y7 -> 693134 | AA7: =Y7+Z7 -> 693500
C8: Date To : | D8: =DAY(M16) -> 15 | E8: =MONTH(M16) -> 6 | F8: =YEAR(M16) -> 2020 | G8: =IF(G7>0,G7/365,0) -> 120.4575342 | H8: Years | I8: =((F8-F7)*12)+(E8-E7) -> 1445 | J8: Months | Q8: 5 | R8: 245 | S8: 151 | T8: 31 | U8: =D8 -> 15 | V8: =IF(E8>0,VLOOKUP($E$8,Table50,3),0) -> 181 | W8: =F8 -> 2020 | X8: =IF(E8>0,VLOOKUP($E$8,Table50,4),0) -> 30 | Y8: =(V8-X8)+U8 -> 166 | Z8: =((W8*365)-365)+Y8 -> 737101 | AA8: =Z8+Y7 -> 737467
Q9: 6 | R9: 214 | S9: 181 | T9: 30 | AA9: =AA8-AA7 -> 43967
C10: Duration : | D10: =TRUNC(G8) -> 120 | E10: Years | F10: =(G8-D10)*365 -> 167 | G10: Days | Q10: 7 | R10: 184 | S10: 212 | T10: 31
Q11: 8 | R11: 153 | S11: 243 | T11: 31
Q12: 9 | R12: 122 | S12: 273 | T12: 30
C13: Approximation : | D13: =D10 -> 120 | E13: Years | F13: =DATEDIF(M15,M16,"YM") -> 5 | G13: Months | Q13: 10 | R13: 92 | S13: 304 | T13: 31
Q14: 11 | R14: 61 | S14: 334 | T14: 30
M15: =IF(AND('Member Details'!K12="",'Practitioners Member Details'!K12<>""),'Practitioners Member Details'!K12,'Member Details'!K12) -> 00:00:00 | Q15: 12 | R15: 31 | S15: 365 | T15: 31
M16: =IF('Member Details'!Q25<>"",'Member Details'!Q25,IF('Practitioners Member Details'!Q22<>"",'Practitioners Member Details'!Q22,NOW())) -> 2020-06-15T11:11:08.860
L18: Year | M18: =DATEDIF(M15,M16,"Y") -> 120
L19: Months | M19: =DATEDIF(M15,M16,"YM") -> 5
L20: Days | M20: =DATEDIF(M15,M16,"MD") -> 15

Sheet PI Finder (hidden)
F2: yyyy | G2: PI Date
C3: Select PI table: | F3: =IF(AND('Member Details'!K25="Yes",'Member Details'!Q25<G3),2019,2020) -> 2020 | G3: 43927
F5: dd/mm/yyyy
C6: Enter date for PI: | F6: =IF('Member Details'!K23="",'Member Details'!S23,'Member Details'!K23) -> 1900-01-01
C9: PI for this date is: | F9: =IF(F6=0/1/1900,1,VLOOKUP(F6,'PI Data'!$A$3:$AZ$998,F3 - 'PI Data'!$A$1 + 2)) -> 

Sheet Benefit Certificate (hidden)
A1: =IF('Member Details'!K14=1995,"NHS 1995 Section","NHS 2008 Section") -> NHS 2008 Section
A2: Estimated Retirement Benefits from Deferred Status
A3: =IF(AND('Member Details'!Q16="VERA",Age!M18<60,'Member Details'!K25="Yes"),"with Actuarial Reduced Pension","") -> 
A4: =IF('Member Details'!Q25<>"",'Member Details'!Q25,NOW()) -> 2020-06-15T11:11:08.860
A5: Name: | B5: ='Member Details'!K8&" "&'Member Details'!L8&" "&'Member Details'!M8 ->  | C5: Last day of Service: | E5: ='Member Details'!K16 -> 00:00:00
A6: NI Number: | B6: ='Member Details'!K38 -> 0 | C6: Reference: | E6: ='Member Details'!K10 -> 0
A7: Annual Pension
A8: Pensionable Service
A10: =IF('Member Details'!K14=1995,'Member Details'!K21&" Years "& 'Member Details'!M21&" Days x 1/80th of £"&'Member Details'!K18,'Member Details'!K21&" Years "& 'Member Details'!M21&" Days x 1/60th of £"&'Member Details'!K18) -> Years Days x 1/60th of £ | D10: =IF('Member Details'!K14=1995,(('Member Details'!M21/365)+'Member Details'!K21)*'Member Details'!K18/80,(('Member Details'!M21/365)+'Member Details'!K21)*'Member Details'!K18/60) -> 0
I11: VERA 1995 | K11: VERA 2008
A12: =IF(AND('Member Details'!Q16="VERA",Age!M18<60,'Member Details'!K25="Yes"),"Less early retirement reduction ("&G12&"%)"," ") ->  | C12: =IF(AND('Member Details'!Q16="VERA",Age!M18<60,'Member Details'!K25="Yes",'Member Details'!K14=1995),"£" & ROUND(D10,2) & " x " & I12,IF(AND('Member Details'!Q16="VERA",Age!M18<65,'Member Details'!K25="Yes",'Member Details'!K14=2008),"£" & ROUND(D10,2) & " x " & K12," ")) ->  | E12: =IF(AND('Member Details'!Q16="VERA",Age!M18<60,'Member Details'!K25="Yes",'Member Details'!K14=1995),D10*I12,IF(AND('Member Details'!Q16="VERA",Age!M18<65,'Member Details'!K25="Yes",'Member Details'!K14=2008),D10*K12,0)) -> 0 | F12: =IF(AND('Member Details'!K14=1995,I12<>""),((1-I12)*100),IF(AND('Member Details'!K14=2008,K12<>""),((1-K12)*100),"")) ->  | G12: =IF(F12<>"",ROUND(F12,2),"") ->  | I12: =IF(AND('Member Details'!Q16="VERA",Age!M18<60,'Member Details'!K25="Yes",'Member Details'!K14=1995),IF('Member Details'!Q25>=43402,VLOOKUP(Age!M18,'VERA Pension Factors'!A7:M18,MATCH(Age!M19,'VERA Pension Factors'!A7:M7,0),FALSE),VLOOKUP(Age!M18,'VERA Pension Factors'!P7:AB18,MATCH(Age!M19,'VERA Pension Factors'!P7:AB7,0),FALSE)),"") ->  | K12: =IF(AND('Member Details'!Q16="VERA",Age!M18<65,'Member Details'!K25="Yes",'Member Details'!K14=2008),IF('Member Details'!Q25>=43402,VLOOKUP(Age!M18,'VERA Pension Factors'!A44:M53,MATCH(Age!M19,'VERA Pension Factors'!A36:M36,0),FALSE),VLOOKUP(Age!M18,'VERA Pension Factors'!P44:AB53,MATCH(Age!M19,'VERA Pension Factors'!P36:AB36,0),FALSE)),"") -> 
A14: =IF('PI Finder'!F9>1,"Plus Pension Increase" &" ("&F14&")"," ") ->  | D14: =IF('PI Finder'!F9>1,IF(E12<>0,(E12*F14)-E12,(D10*F14)-D10),0) ->  | F14: =IF('PI Finder'!F9>1,ROUND('PI Finder'!F9,4),0) -> 
A16: Estimated Annual Pension | D16: =IF(AND('Member Details'!Q16="VERA",Age!M18<60,'Member Details'!K25="Yes"),SUM(E12+D14),SUM(D10+D14)) -> 
A18: Lump Sum
A19: =IF('Member Details'!K14=1995,"Pensionable Service","") -> 
A21: =IF('Member Details'!K14=1995,'Member Details'!K21&" Years "& 'Member Details'!M21&" Days x 3/80th of £"&'Member Details'!K18,"") ->  | D21: =IF('Member Details'!K14=1995,(('Member Details'!M21/365)+'Member Details'!K21)*'Member Details'!K18*3/80,0) -> 0
A22: =IF('Member Details'!K14=2008,"No Automatic Lump Sum given.","") ->  | I22: VERA LS
A23: =IF(AND('Member Details'!Q16="VERA",Age!M18<60,'Member Details'!K25="Yes",'Member Details'!K14=1995),"Less early retirement reduction ("&G23&"%)"," ") ->  | C23: =IF(AND('Member Details'!Q16="VERA",Age!M18<60,'Member Details'!K25="Yes",'Member Details'!K14=1995),"£" & ROUND(D21,2) & " x " & I23," ") ->  | E23: =IF(AND('Member Details'!Q16="VERA",Age!M18<60,'Member Details'!K25="Yes",'Member Details'!K14=1995),ROUND('Benefit Certificate'!D21,2)*'Benefit Certificate'!I23,0) -> 0 | F23: =IF(AND('Member Details'!Q16="VERA",Age!M18<60,'Member Details'!K14=1995),(1-'Benefit Certificate'!I23)*100,"") ->  | G23: =IF(F23<>"",ROUND(F23,2),"") ->  | I23: =IF(AND('Member Details'!Q16="VERA",Age!M18<60,'Member Details'!K25="Yes",'Member Details'!K14=1995),IF('Member Details'!Q25>=43402,VLOOKUP(Age!M18,'VERA LS Factors'!A7:M19,MATCH(Age!M19,'VERA LS Factors'!A7:M7,0),FALSE),VLOOKUP(Age!M18,'VERA LS Factors'!P7:AB19,MATCH(Age!M19,'VERA LS Factors'!P7:AB7,0),FALSE)),"") -> 
A24: =IF('Member Details'!K14=2008,"You may wish to give up part of your pension to receive a tax free Lump Sum.","") -> 
A25: =IF(AND('PI Finder'!F9>1,'Member Details'!K14=1995),"Plus Pension Increase" &" ("&F25&")"," ") ->  | D25: =IF(AND('PI Finder'!F9>1,'Member Details'!K14=1995),IF(E23<>0,(E23*F25)-E23,(D21*F25)-D21),0) ->  | F25: =IF(AND('PI Finder'!F9>1,'Member Details'!K14=1995),ROUND('PI Finder'!F9,4),0) -> 
A26: =IF('Member Details'!K14=2008,"The maximum allowed by HM Revenue & Customs is 25% of your Fund Value.","") -> 
A27: =IF('Member Details'!K14=1995,"Estimated Lump Sum","") ->  | D27: =IF(AND('Member Details'!O16="VERA",Age!M18<60,'Member Details'!K25="Yes"),SUM(E23+D25),SUM(D21+D25)) -> 
A29: HMRC Lifetime Allowance (LTA)
A31: Lifetime Allowance | D31: =IF('PI Finder'!F3=2018,1030000,1055000) -> 1055000
A32: Value of Crystallised Benefits | D32: =(D16*20)+D27 -> 
A33: Percentage of LTA Used (%) | D33: =(D32/D31)*100 -> 
A34: Value of LTA Unused | D34: =IF(D31-D32<0,0,D31-D32) -> 
A35: Percentage of LTA Unused (%) | D35: =IF(100-D33<0,0,100-D33) -> 

Sheet Letter (hidden)
G5: 7 Tweedside Park
G6: Tweedbank
G7: Galashiels
H8: TD1 3TE
A9: ='Member Details'!K8&" "&'Member Details'!L8&" "&'Member Details'!M8 ->  | H9: www.pensions.gov.scot
A10: ='Member Details'!K32 -> 0
A11: ='Member Details'!K33 -> 0 | G11: Tel: 01896 893000
A12: ='Member Details'!K34 -> 0 | G12: Fax: 01896 893214
A13: ='Member Details'!K35 -> 0 | G13: nhsawards@gov.scot
A14: ='Member Details'!K36 -> 0
G15: Our ref: | H15: ='Member Details'!K10 -> 0
G16: Letter Ref: | H16: Pres v1.0
G17: =NOW() -> 2020-06-15T11:11:08.870
A19: ="Dear "&'Member Details'!K8&" "&'Member Details'!M8 -> Dear
A21: National Health Service Superannuation Scheme (Scotland)
A23: In accordance with your request please find enclosed an estimate of your retirement benefits. You should read the notes for further explanatory information.
A26: Name | C26: ='Member Details'!L8&" "&'Member Details'!M8 ->  | E26: National Insurance No | G26: ='Member Details'!K38 -> 0
A27: Date of Birth | C27: ='Member Details'!K12 -> 00:00:00 | E27: Superannuation No | G27: ='Member Details'!K10 -> 0
A28: Normal Retirement Date | C28: =IF('Member Details'!K14=1995,DATE(YEAR('Member Details'!K12)+60,MONTH('Member Details'!K12),DAY('Member Details'!K12)),DATE(YEAR('Member Details'!K12)+65,MONTH('Member Details'!K12),DAY('Member Details'!K12))) -> 1964-12-31 | E28: Normal Pension Age | G28: =IF('Member Details'!K14=1995,60,65) -> 65
A30: ="Service/Salary Details at Last Date of Pensionable Service ("&TEXT('Member Details'!K16,"dd/mm/yyyy")&")" -> Service/Salary Details at Last Date of Pensionable Service (00/01/1900)
A31: Pensionable Service | C31: ='Member Details'!K21&" Years "&'Member Details'!M21&" Days" -> Years Days | E31: Pensionable Salary | G31: ='Member Details'!K18 -> 0
A33: =IF('Member Details'!Q25<>"","Estimated Current Retirement Benefits ("&TEXT('Member Details'!Q25,"dd/mm/yyyy")&")","Estimated Current Retirement Benefits ("&TEXT(Letter!G17,"dd/mm/yyyy")&")") -> Estimated Current Retirement Benefits (15/06/2020)
A34: Pension | C34: ='Benefit Certificate'!D16 ->  | E34: Lump Sum | G34: =IF('Member Details'!K14=1995,ROUND('Benefit Certificate'!D27,2),"No Automatic Lump Sum") -> No Automatic Lump Sum
A36: As you are no longer in pensionable employment, your basic retirement benefits should remain unchanged. These will be index linked in line with inflation until retirement.
A39: This is not a statement of your legal entitlement and is intended for illustrative purposes only. Exact figures for retirement benefits cannot be given until an application for retirement benefits has been made in accordance with the scheme rules. Scottish Public Pensions Agency will accept no responsibility for the accuracy of this information.
A44: If you require any further information please do not hesitate to contact the Agency at the above address.
A47: Yours sincerely
A51: SPPA Customer Services
A62: Pensionable Salary For members of the 1995 section of the NHS Superannuation Scheme (Scotland) the pensionable salary used to calculate scheme benefits on retirement is the best of the last 3 years, this means the pensionable salary taken back 365 days from the date of retirement as supplied by your employer. For members of the 2008 section of the NHS Superannuation Scheme (Scotland) the salary used in calculating your retirement benefits is calculated as the average of the best consecutive 3 years’ revalued salaries in the last 10 years. For the purposes of this illustration your salary information has been based on your preserved pensionable salary. If you were part-time, this will be based on the full time equivalent salary rate. We would emphasise that while every effort has been made to ensure the accuracy of your pensionable salary it is not until you retire that an accurate calculation can be made.
A75: Pensionable Service This is the period of employment that is taken into account when working out pension benefits. The figure quoted is your pensionable service to your last day worked. It will include any service you have already transferred into the scheme from another pension scheme. Please note that part-time service is converted to the equivalent full time service. For example, if you worked 18.75 hours per week instead of 37.5 for a full time employment then you would accrue 183 days service instead of 365 for each year. No projected service has been added as you have left pensionable employment.
A83: Estimated Current Benefits 1995 Member If you are a 1995 section member, your annual pension has been calculated using the following formula: Pension: Pensionable Service x Pensionable Salary x 1/80th Lump Sum: Pensionable Service x Pensionable Salary x 3/80th If you worked after 30 March 2000, you may take you benefits prior to Normal Pension Age (NPA) of 60. Any benefits payable prior to NPA will normally be subject to an actuarial reduction to allow for the benefits being paid earlier. 2008 Member If you are a 2008 section member, your annual pension has been calculated using the following formula: Pension: Pensionable Service x Pensionable Salary x 1/60th Lump Sum: No Automatic Lump Sum Any benefits payable prior to NPA of 65 will normally be subject to an actuarial reduction to allow for the benefits being paid earlier.
A103: Increasing your Tax Free Lump Sum There is the provision to give up an amount of pension in exchange for an additional lump sum up to the maximum allowed by HM Revenue & Customs of 25% of the fund value. There is a Commutation Calculator on our website that can be used to project estimated values. The factor for converting your pension into lump sum is 12:1 which means that for every £1 of pension you give up, you will get £12 added to your lump sum.

Sheet Practitioners Member Details (hidden)
F2: NHS Superannuation Scheme (Scotland) Preserved Benefits Estimate Calculator
E6: Practitioner Member Details | J6: PLEASE COMPLETE ALL NECESSARY DATA
I8: Members Name | P8: Eg: Mr | J | Smith
H10: Superannuation Number
I12: Date of Birth | T12: =DATEDIF(K12,NOW(),"Y") -> 120 | U12: Yes
U13: No
I14: Scheme | S14: 1995
S15: 2008
H16: Last Day Worked in NHS | P16: =K16+1 -> 1900-01-01 | Q16: =IF(R16>=S16,"VERA","AGE") -> AGE | R16: =K16 -> 0 | S16: 36616
H18: Deferred Basic Pension
H20: =IF(K14=2008,"","Deferred Basic Lump Sum ") -> Deferred Basic Lump Sum
J22: =IF(T12>=55,"Are you looking for a Retirement Estimate? ","") -> Are you looking for a Retirement Estimate? | O22: =IF(K22="Yes","Retirement Date ","") ->  | S22: Yes
S23: No
I27: Additional Information if Letter and Certificate Required
I29: Address Line 1
I30: Address Line 2
I31: Address Line 3
I32: Address Line 4
I33: Post Code
I35: NI Number

Sheet Practitioners Letter (hidden)
G5: 7 Tweedside Park
G6: Tweedbank
G7: Galashiels
H8: TD1 3TE
A9: ='Practitioners Member Details'!K8&" "&'Practitioners Member Details'!L8&" "&'Practitioners Member Details'!M8 ->  | H9: www.pensions.gov.scot
A10: ='Practitioners Member Details'!K29 -> 0
A11: ='Practitioners Member Details'!K30 -> 0 | G11: Tel: 01896 893000
A12: ='Practitioners Member Details'!K31 -> 0 | G12: Fax: 01896 893214
A13: ='Practitioners Member Details'!K32 -> 0 | G13: nhspractitioner@gov.scot
A14: ='Practitioners Member Details'!K33 -> 0
G15: Our ref: | H15: ='Practitioners Member Details'!K10 -> 0
G16: Letter Ref: | H16: Pres v1.0
G17: =NOW() -> 2020-06-15T11:11:08.860
A19: ="Dear "&'Practitioners Member Details'!K8&" "&'Practitioners Member Details'!M8 -> Dear
A21: National Health Service Superannuation Scheme (Scotland)
A23: In accordance with your request please find enclosed an estimate of your retirement benefits. You should read the notes for further explanatory information.
A26: Name | C26: ='Practitioners Member Details'!L8&" "&'Practitioners Member Details'!M8 ->  | E26: National Insurance No | G26: ='Practitioners Member Details'!K35 -> 0
A27: Date of Birth | C27: ='Practitioners Member Details'!K12 -> 00:00:00 | E27: Superannuation No | G27: ='Practitioners Member Details'!K10 -> 0
A28: Normal Retirement Date | C28: =IF('Practitioners Member Details'!K14=1995,DATE(YEAR('Practitioners Member Details'!K12)+60,MONTH('Practitioners Member Details'!K12),DAY('Practitioners Member Details'!K12)),DATE(YEAR('Practitioners Member Details'!K12)+65,MONTH('Practitioners Member Details'!K12),DAY('Practitioners Member Details'!K12))) -> 1964-12-31 | E28: Normal Pension Age | G28: =IF('Practitioners Member Details'!K14=1995,60,65) -> 65
A30: =IF('Practitioners Member Details'!Q22<>"","Estimated Current Retirement Benefits ("&TEXT('Practitioners Member Details'!Q22,"dd/mm/yyyy")&")","Estimated Current Retirement Benefits ("&TEXT(G17,"dd/mm/yyyy")&")") -> Estimated Current Retirement Benefits (15/06/2020)
A31: Pension | C31: ='Practitioners Ben Certificate'!D16 ->  | E31: Lump Sum | G31: =IF('Practitioners Member Details'!K14=1995,ROUND('Practitioners Ben Certificate'!D27,2),"No Automatic Lump Sum") -> No Automatic Lump Sum
A33: As you are no longer in pensionable employment, your basic retirement benefits should remain unchanged. These will be index linked in line with inflation until retirement.
A36: This is not a statement of your legal entitlement and is intended for illustrative purposes only. Exact figures for retirement benefits cannot be given until an application for retirement benefits has been made in accordance with the scheme rules. Scottish Public Pensions Agency will accept no responsibility for the accuracy of this information.
A41: If you require any further information please do not hesitate to contact the Agency at the above address.
A44: Yours sincerely
A50: NHS Practitioners Team
A66: Notes Pension benefits for service as a practitioner are based on pensionable remuneration earned in each financial year which is then uprated by factors to a current value at the date of ceasing to pay contributions and added together to give the Total Uprated Superannable Remuneration (TUSR). The pension in the 1995 Section of the Scheme is calculated at 1.4% of the TUSR and the tax free lump sum as 4.2% of the TUSR. In the 2008 Section the pension is calculated at 1.87% of the TUSR. There is no automatic tax free lump sum however there is provision to give up an amount of pension in exchange for a tax free lump sum. Further information is provided below. Pension benefits for non-practitioner earnings are based on an accrual rate of 1/80th for the 1995 section and 1/60th for the 2008 section. Pension flexibilities for practitioners have been applied but these cannot be fully tested until retirement when the highest possible benefits will be paid. Any service purchased as the result of an added years contract has been included in the estimate as a proportional credit. Practitioner earnings and the Consumer Price Index rates are not available in advance therefore SPPA do not provide projections of benefits.
A87: Increasing your Tax Free Lump Sum There is the provision to give up an amount of pension in exchange for an additional lump sum up to the maximum allowed by HM Revenue & Customs of 25% of the fund value. There is a Commutation Calculator on our website that can be used to project estimated values. The factor for converting your pension into lump sum is 12:1 which means that for every £1 of pension you give up, you will get £12 added to your lump sum.

Sheet Practitioners PI Finder (hidden)
F2: yyyy | G2: PI Date
C3: Select PI table: | F3: =IF(AND('Practitioners Member Details'!K25="Yes",'Practitioners Member Details'!Q25<G3),2019,2020) -> 2020 | G3: 43927
F5: dd/mm/yyyy
C6: Enter date for PI: | F6: ='Practitioners Member Details'!P16 -> 1900-01-01
C9: PI for this date is: | F9: =IF(F6=0/1/1900,1,VLOOKUP(F6,'PI Data'!$A$3:$AZ$998,F3 - 'PI Data'!$A$1 + 2)) -> 

Sheet Practitioners Ben Certificate (hidden)
A1: =IF('Practitioners Member Details'!K14=1995,"NHS 1995 Section","NHS 2008 Section") -> NHS 2008 Section
A2: Estimated Retirement Benefits from Deferred Status
A3: =IF(AND('Practitioners Member Details'!Q16="VERA",Age!M18<60,'Practitioners Member Details'!K23="Yes"),"with Actuarial Reduced Pension","") -> 
A4: =IF('Practitioners Member Details'!Q23<>"",'Practitioners Member Details'!Q23,NOW()) -> 2020-06-15T11:11:08.860
A5: Name: | B5: ='Practitioners Member Details'!K8&" "&'Practitioners Member Details'!L8&" "&'Practitioners Member Details'!M8 ->  | C5: Last day of Service: | E5: ='Practitioners Member Details'!K16 -> 00:00:00
A6: NI Number: | B6: ='Practitioners Member Details'!K35 -> 0 | C6: Reference: | E6: ='Practitioners Member Details'!K10 -> 0
A7: Annual Pension
A10: Deferred Basic Total Pension | D10: ='Practitioners Member Details'!K18 -> 0
I11: VERA 1995 | K11: VERA 2008
A12: =IF(AND('Practitioners Member Details'!Q16="VERA",Age!M18<60,'Practitioners Member Details'!K22="Yes"),"Less early retirement reduction ("&G12&"%)"," ") ->  | C12: =IF(AND('Practitioners Member Details'!Q16="VERA",Age!M18<60,'Practitioners Member Details'!K23="Yes",'Practitioners Member Details'!K14=1995),"£" & ROUND(D10,2) & " x " & I12,IF(AND('Practitioners Member Details'!Q16="VERA",Age!M18<65,'Practitioners Member Details'!K23="Yes",'Practitioners Member Details'!K14=2008),"£" & ROUND(D10,2) & " x " & K12," ")) ->  | E12: =IF(AND('Practitioners Member Details'!Q16="VERA",Age!M18<60,'Practitioners Member Details'!K22="Yes",'Practitioners Member Details'!K14=1995),D10*I12,IF(AND('Practitioners Member Details'!Q16="VERA",Age!M18<65,'Practitioners Member Details'!K22="Yes",'Practitioners Member Details'!K14=2008),D10*K12,0)) -> 0 | F12: =IF(AND('Practitioners Member Details'!K14=1995,I12<>""),((1-I12)*100),IF(AND('Practitioners Member Details'!K14=2008,K12<>""),((1-K12)*100),"")) ->  | G12: =IF(F12<>"",ROUND(F12,2),"") ->  | I12: =IF(AND('Practitioners Member Details'!Q16="VERA",Age!M18<60,'Practitioners Member Details'!K22="Yes",'Practitioners Member Details'!K14=1995),IF('Practitioners Member Details'!Q22>=43402,VLOOKUP(Age!M18,'VERA Pension Factors'!A7:M18,MATCH(Age!M19,'VERA Pension Factors'!A7:M7,0),FALSE),VLOOKUP(Age!M18,'VERA Pension Factors'!P7:AB18,MATCH(Age!M19,'VERA Pension Factors'!P7:AB7,0),FALSE)),"") ->  | K12: =IF(AND('Practitioners Member Details'!Q16="VERA",Age!M18<65,'Practitioners Member Details'!K22="Yes",'Practitioners Member Details'!K14=2008),IF('Practitioners Member Details'!Q22>=43402,VLOOKUP(Age!M18,'VERA Pension Factors'!A44:M53,MATCH(Age!M19,'VERA Pension Factors'!A36:M36,0),FALSE),VLOOKUP(Age!M18,'VERA Pension Factors'!P44:AB53,MATCH(Age!M19,'VERA Pension Factors'!P36:AB36,0),FALSE)),"") -> 
A14: =IF('Practitioners PI Finder'!F9>1,"Plus Pension Increase" &" ("&F14&")"," ") ->  | D14: =IF('Practitioners PI Finder'!F9>1,IF(E12<>0,(E12*F14)-E12,(D10*F14)-D10),0) ->  | F14: =IF('Practitioners PI Finder'!F9>1,ROUND('Practitioners PI Finder'!F9,4),0) -> 
A16: Estimated Annual Pension | D16: =IF(AND('Practitioners Member Details'!Q16="VERA",Age!M18<60,'Practitioners Member Details'!K22="Yes"),SUM(E12+D14),SUM(D10+D14)) -> 
A18: Lump Sum
A21: Deferred Basic Lump Sum | D21: ='Practitioners Member Details'!K20 -> 0
A22: =IF('Practitioners Member Details'!K14=2008,"No Automatic Lump Sum given.","") ->  | I22: VERA LS
A23: =IF(AND('Practitioners Member Details'!Q16="VERA",Age!M18<60,'Practitioners Member Details'!K22="Yes",'Practitioners Member Details'!K14=1995),"Less early retirement reduction ("&G23&"%)"," ") ->  | C23: =IF(AND('Practitioners Member Details'!Q16="VERA",Age!M18<60,'Practitioners Member Details'!K23="Yes",'Practitioners Member Details'!K14=1995),"£" & ROUND(D21,2) & " x " & I23," ") ->  | E23: =IF(AND('Practitioners Member Details'!Q16="VERA",Age!M18<60,'Practitioners Member Details'!K22="Yes",'Practitioners Member Details'!K14=1995),ROUND('Practitioners Ben Certificate'!D21,2)*'Practitioners Ben Certificate'!I23,0) -> 0 | F23: =IF(AND('Practitioners Member Details'!Q16="VERA",Age!M18<60,'Practitioners Member Details'!K14=1995),(1-'Practitioners Ben Certificate'!I23)*100,"") ->  | G23: =IF(F23<>"",ROUND(F23,2),"") ->  | I23: =IF(AND('Practitioners Member Details'!Q16="VERA",Age!M18<60,'Practitioners Member Details'!K22="Yes",'Practitioners Member Details'!K14=1995),IF('Practitioners Member Details'!Q22>=43402,VLOOKUP(Age!M18,'VERA LS Factors'!A7:M19,MATCH(Age!M19,'VERA LS Factors'!A7:M7,0),FALSE),VLOOKUP(Age!M18,'VERA LS Factors'!P7:AB19,MATCH(Age!M19,'VERA LS Factors'!P7:AB7,0),FALSE)),"") -> 
A24: =IF('Practitioners Member Details'!K14=2008,"You may wish to give up part of your pension to receive a tax free Lump Sum.","") -> 
A25: =IF(AND('Practitioners PI Finder'!F9>1,'Practitioners Member Details'!K14=1995),"Plus Pension Increase" &" ("&F25&")"," ") ->  | D25: =IF(AND('Practitioners PI Finder'!F9>1,'Practitioners Member Details'!K14=1995),IF(E23<>0,(E23*F25)-E23,(D21*F25)-D21),0) ->  | F25: =IF(AND('Practitioners PI Finder'!F9>1,'Practitioners Member Details'!K14=1995),ROUND('Practitioners PI Finder'!F9,4),0) -> 
A26: =IF('Practitioners Member Details'!K14=2008,"The maximum allowed by HM Revenue & Customs is 25% of your Fund Value.","") -> 
A27: =IF('Practitioners Member Details'!K14=1995,"Estimated Lump Sum","") ->  | D27: =IF(AND('Practitioners Member Details'!Q16="VERA",Age!M18<60,'Practitioners Member Details'!K22="Yes"),SUM(E23+D25),SUM(D21+D25)) -> 
A29: HMRC Lifetime Allowance (LTA)
A31: Lifetime Allowance | D31: =IF('Practitioners PI Finder'!F3=2018,1030000,1055000) -> 1055000
A32: Value of Crystallised Benefits | D32: =(D16*20)+D27 ->  | G32: Tax Charge Message
A33: Percentage of LTA Used (%) | D33: =(D32/D31)*100 -> 
A34: Value of LTA Unused | D34: =IF(D31-D32<0,0,D31-D32) -> 
A35: Percentage of LTA Unused (%) | D35: =IF(100-D33<0,0,100-D33) -> 
